Cogmind - Beta 13 @@@ ROGUE MODE // 2024.04.17 @ 00:57:40 Player: TheBermanGrit Result: Destroyed by Y-45 Defender with Beam Rifle Performance ------------- Evolutions (1) 500 Regions Visited (4) 800 Robots Destroyed (14) 70 Value Destroyed (252) 252 Prototype IDs (3) 60 Alien Tech Used (0) 0 Bonus (0) 0 TOTAL SCORE: 1682 Bonus ------- None Cogmind --------- Core Integrity 0/400 Matter 47/300 Energy 239/240 System Corruption 0% Temperature Cool (29) Movement Flying (37) Location -9/Storage Parts ------- > --- POWER (1) -------- Nuclear Core > --- PROPULSION (3) --- Improved Flight Unit Improved Flight Unit > --- UTILITY (3) ------ Power Shielding > --- WEAPON (2) ------- (None) > --- INVENTORY (5) ---- Nuclear Core VTOL Module Improved Flight Unit Autogun Peak State ------------ > --- POWER ------------ Nuclear Core > --- PROPULSION ------- Improved Flight Unit Improved Flight Unit Improved Flight Unit > --- UTILITY ---------- Experimental Sensor Array Power Shielding > --- WEAPON ----------- Rocket Launcher > --- INVENTORY -------- Nuclear Core Improved Flight Unit Heat Sink Autogun Mining Laser [Rating: 25] Favorites ----------- Power Light Ion Engine Engine Light Ion Engine Power Core Nuclear Core Propulsion Aluminum Leg Treads Light Treads Leg Aluminum Leg Flight Unit Improved Flight Unit Utility Power Shielding Device Experimental Sensor Array Storage Medium Storage Unit Protection Power Shielding Weapon Light Assault Rifle Energy Gun Heavy Particle Gun Energy Cannon Particle Cannon Ballistic Gun Light Assault Rifle Launcher Rocket Launcher Build | -11 -10 -10 -9 -9 ------- Run | Yrd Mat Min Mat Sto Slots Evolved 2 | . . . 2 . Power . | . . . . . Propulsion 1 | . . . 1 . Utility 1 | . . . 1 . Weapon . | . . . . . Parts Attached 38 | 8 2 2 15 11 Power 6 | 1 . . 3 2 Engine 2 | 1 . . 1 . Core 4 | . . . 2 2 Reactor . | . . . . . Propulsion 14 | 5 . . 4 5 Treads 7 | 3 . . 2 2 Leg 2 | 2 . . . . Wheel . | . . . . . Hover . | . . . . . Flight 5 | . . . 2 3 Utility 8 | 1 1 1 2 3 Device 1 | . . . . 1 Storage 2 | 1 . 1 . . Processor . | . . . . . Hackware . | . . . . . Protection 5 | . 1 . 2 2 Artifact . | . . . . . Weapon 10 | 1 1 1 6 1 Energy Gun 5 | . . . 5 . Energy Cannon 1 | . . . 1 . Ballistic Gun 3 | 1 1 1 . . Ballistic Cannon . | . . . . . Launcher 1 | . . . . 1 Special Weapon . | . . . . . Impact Weapon . | . . . . . Slashing Weapon . | . . . . . Piercing Weapon . | . . . . . Special Melee Weapon . | . . . . . Unidentified Prototypes 3 | . . . 1 2 Parts Lost 13 | . . . 9 4 Power 2 | . . . 2 . Propulsion 4 | . . . 3 1 Utility 4 | . . . 2 2 Weapon 3 | . . . 2 1 Highest Loss Streak 9 | . . . 9 2 To Critical Strikes . | . . . . . Average Slot Usage (%) 84 | . 95 100 75 58 Engine 8 | . 14 14 4 . Core 2 | . . . 3 7 Treads 3 | . . . 8 4 Leg 16 | . 28 28 7 . Flight 4 | . . . 3 20 Device 1 | . . . . 7 Storage 10 | . 14 14 11 . Protection 14 | . 9 14 16 12 Energy Gun 2 | . . . 8 . Ballistic Gun 17 | . 28 28 9 . Launcher 1 | . . . . 6 Naked Turns . | . . . . . Heaviest Build 31 | 9 11 16 31 15 Greatest Support 40 | 40 20 20 40 40 Greatest Overweight (x) 5 | . . . 5 2 Average Overweight (x) . | . . . . . Largest Inventory Capacity 10 | 8 8 10 10 10 Average Capacity 8 | 7 8 8 10 5 Most Carried 10 | 4 5 9 10 5 Average Carried 6 | 2 3 7 8 4 Final Capacity 10 | 8 8 10 10 5 Final Carried 9 | 4 5 9 6 4 Class Distribution -------------------- 100% | Mutant Dominant Class ---------------- Mutant | -10/Materials Mutant | -10/Mines Mutant | -9/Materials Mutant | -9/Storage Resources | -11 -10 -10 -9 -9 ----------- Run | Yrd Mat Min Mat Sto Matter Collected 410 | 192 . 168 . 50 Remotely . | . . . . . Salvage Created 294 | . . 88 82 124 Parts 31 | . . 9 11 11 Haulers Intercepted 1 | . . . . 1 Recyclers Shooed . | . . . . . Parts Field Recycled . | . . . . . Retrieved Matter . | . . . . . Parts Self-Destructed . | . . . . . Prevented . | . . . . . Kills | -11 -10 -10 -9 -9 ------- Run | Yrd Mat Min Mat Sto Combat Hostiles Destroyed 13 | . . 6 4 3 Guns 10 | . . 6 4 . AOE 3 | . . . . 3 Classes Destroyed 5 | . . 1 1 3 Hauler 1 | . . . . 1 Swarmer 9 | . . 6 3 . Grunt 2 | . . . . 2 Duelist 1 | . . . 1 . Sentry 1 | . . . . 1 Best Kill Streak 3 | . . 3 3 3 Combat Bots Only 3 | . . 3 3 2 Max Kills in Single Turn 2 | . . 1 1 2 Gunslinging . | . . . . . Exploded 2 | . . . . 2 Melee . | . . . . . Uniques/NPCs Destroyed . | . . . . . Combat | -11 -10 -10 -9 -9 -------- Run | Yrd Mat Min Mat Sto Hostile Shots Fired 263 | . 2 35 172 54 Missed 82 | . 1 5 40 36 Damage Taken 2005 | . 12 243 1418 332 Core 463 | . . 52 326 85 Absorbed by Shields . | . . . . . Redirected to Shielding 64 | . . 5 43 16 Core Remaining (%) 89 | 100 . 79 . . Volleys Fired 46 | . . 20 18 8 Largest 2 | . . 2 2 1 Hottest 110 | . . 40 110 33 Shots Fired 74 | . . 40 26 8 Gun 66 | . . 40 26 . Cannon . | . . . . . Launcher 8 | . . . . 8 Special . | . . . . . Kinetic 40 | . . 40 . . Thermal 26 | . . . 26 . Explosive 8 | . . . . 8 Electromagnetic . | . . . . . Robot Hit Streak 5 | . . 4 5 3 Robot Miss Streak 8 | . . 4 8 2 Penetration Max . | . . . . . Secondary Targets 3 | . . 1 2 . Max Gunslinging Chain 1 | . . 1 1 . Shots Hit Robots 34 | . . 18 11 5 Core Hits 20 | . . 8 6 6 Critical Kills . | . . . . . Critical Parts Destroyed . | . . . . . Critical Strikes . | . . . . . Melee Attacks . | . . . . . Impact . | . . . . . Slashing . | . . . . . Piercing . | . . . . . Sneak Attacks . | . . . . . Combat Hostiles . | . . . . . Follow-up Attacks . | . . . . . Damage Inflicted 858 | . . 150 292 416 Guns 432 | . . 150 282 . Cannons . | . . . . . Explosions 416 | . . . . 416 Melee . | . . . . . Ramming 10 | . . . 10 . Kinetic 150 | . . 150 . . Thermal 282 | . . . 282 . Explosive 416 | . . . . 416 Electromagnetic . | . . . . . Impact . | . . . . . Slashing . | . . . . . Piercing . | . . . . . Highest Corruption . | . . . . . Average Corruption . | . . . . . Corruption Purged . | . . . . . Corruption Blocked . | . . . . . Overload Shots . | . . . . . Overflow Damage 1 | . . . . 1 Projectiles . | . . . . . Explosions 1 | . . . . 1 Melee . | . . . . . Knockbacks . | . . . . . Impact . | . . . . . Kinetic . | . . . . . Secondary . | . . . . . Self-Inflicted Damage 44 | . . . 5 39 Shots 2 | . . . . 2 Rammed 1 | . . . 1 . Targets Rammed 1 | . . . 1 . Kicked . | . . . . . Crushed . | . . . . . Highest Temperature 592 | . . . 592 13 Average Temperature 319 | . . . 336 6 Received Heat Transfer 408 | . 6 . 351 51 Effects 20 | . . . 20 . Shutdowns 3 | . . . 3 . Energy Bleed 1 | . . . 1 . Interference 2 | . . . 2 . Matter Decay 1 | . . . 1 . Short Circuit 5 | . . . 5 . Damage (minor) 2 | . . . 2 . Damage (major) 6 | . . . 6 . Siege Activations . | . . . . . Robots Corrupted . | . . . . . Combat Hostiles . | . . . . . Parts Fried . | . . . . . Impact Corruptions . | . . . . . Robots Melted . | . . . . . Combat Hostiles . | . . . . . Parts Melted . | . . . . . Heat Transferred 555 | . . . 555 . Parts Sabotaged . | . . . . . Parts Stolen . | . . . . . Parts Stripped . | . . . . . Power Chain Reactions . | . . . . . Alert | -11 -10 -10 -9 -9 ------- Run | Yrd Mat Min Mat Sto Peak Influence 307 | . 15 190 87 307 Initial 19 | . . 5 . 19 Average 79 | . 12 120 19 128 Maximum Alert Level 1 | . . . . 1 Low Security (%) 96 | 100 100 100 100 76 Level 1 3 | . . . . 23 Level 2 . | . . . . . Level 3 . | . . . . . Level 4 . | . . . . . Level 5 . | . . . . . High Security . | . . . . . Max Security . | . . . . . Squads Dispatched 4 | . 1 . 2 1 Investigation 1 | . . . . 1 Extermination . | . . . . . Reinforcement 3 | . 1 . 2 . Assault . | . . . . . Garrison . | . . . . . Intercept . | . . . . . Searches Triggered . | . . . . . Construction Impeded . | . . . . . Haulers Reinforced . | . . . . . Active Scanning Responses . | . . . . . Cargo Convoy Interrupts . | . . . . . Stealth | -11 -10 -10 -9 -9 --------- Run | Yrd Mat Min Mat Sto Distress Signals 1 | . . . 1 . Communications Jammed . | . . . . . Distress Signals . | . . . . . Times Spotted 40 | . 3 9 12 16 Peak Tracking Total 14 | . 2 3 8 14 Tactical Retreats 4 | . . 2 1 1 Traps | -11 -10 -10 -9 -9 ------- Run | Yrd Mat Min Mat Sto Traps Triggered . | . . . . . Indirectly . | . . . . . Trap Hack Attempts . | . . . . . Triggered . | . . . . . Disarmed . | . . . . . Reprogrammed . | . . . . . Reused . | . . . . . Traps Extracted . | . . . . . Installed . | . . . . . Triggered . | . . . . . Machines | -11 -10 -10 -9 -9 ---------- Run | Yrd Mat Min Mat Sto Machines Disabled . | . . . . . Max in Single Turn . | . . . . . Machines Repaired . | . . . . . Machines Dismantled . | . . . . . Machines Sabotaged . | . . . . . Overloaded Fab Kills . | . . . . . Hacking | -11 -10 -10 -9 -9 --------- Run | Yrd Mat Min Mat Sto Machines Accessed 4 | . . . 2 2 Terminals 2 | . . . 1 1 Fabricators . | . . . . . Repair Stations . | . . . . . Recycling Units 2 | . . . 1 1 Scanalyzers . | . . . . . Garrison Access . | . . . . . Total Hacks 9 | . . . 4 5 Successful 3 | . . . 2 1 Failed 6 | . . . 2 4 Catastrophic 1 | . . . . 1 Database Lockouts . | . . . . . Manual 1 | . . . 1 . Terminals 5 | . . . 3 2 Fabricators . | . . . . . Repair Stations . | . . . . . Recycling Units 4 | . . . 1 3 Scanalyzers . | . . . . . Garrison Access . | . . . . . Terminal Hacks 1 | . . . 1 . Unreport Threat 1 | . . . 1 . Fabricator Hacks . | . . . . . Repair Station Hacks . | . . . . . Recycling Unit Hacks 2 | . . . 1 1 Retrieve Components 2 | . . . 1 1 Scanalyzer . | . . . . . Garrison Access Hacks . | . . . . . Unauthorized Hacks . | . . . . . Terminals . | . . . . . Fabricators . | . . . . . Repair Stations . | . . . . . Recycling Units . | . . . . . Scanalyzers . | . . . . . Garrison Access . | . . . . . Data Cores Recovered . | . . . . . Used . | . . . . . Hacking Detections 3 | . . . 1 2 Full Trace Events 1 | . . . . 1 Feedback Events . | . . . . . Feedback Blocked . | . . . . . Robot Schematics Acquired . | . . . . . Robots Built . | . . . . . Authchips . | . . . . . Time . | . . . . . Total Robot Build Rating . | . . . . . Part Schematics Acquired . | . . . . . Parts Built . | . . . . . Authchips . | . . . . . Time . | . . . . . Total Part Build Rating . | . . . . . Parts Repaired . | . . . . . Time . | . . . . . Parts Recycled . | . . . . . Recycled Matter . | . . . . . Retrieved Matter . | . . . . . Retrieved Components 1 | . . . . 1 Parts Scanalyzed . | . . . . . Part Schematics Acquired . | . . . . . Parts Damaged . | . . . . . Bothacking | -11 -10 -10 -9 -9 ------------ Run | Yrd Mat Min Mat Sto Used RIF Installer . | . . . . . Robots Hacked . | . . . . . Non-combat . | . . . . . Combat . | . . . . . Robot Hacks Applied . | . . . . . Relay Couplers Released . | . . . . . Fabnet Peak Effective % . | . . . . . Robots Rewired . | . . . . . Allies Hacked . | . . . . . Hacks Repelled . | . . . . . Allies | -11 -10 -10 -9 -9 -------- Run | Yrd Mat Min Mat Sto Total Allies . | . . . . . Largest Group . | . . . . . Highest-Rated Group . | . . . . . Highest-Rated Ally . | . . . . . Total Orders . | . . . . . Ally Attacks . | . . . . . Total Damage . | . . . . . Kills . | . . . . . Allies Corrupted . | . . . . . Allies Melted . | . . . . . Intel | -11 -10 -10 -9 -9 ------- Run | Yrd Mat Min Mat Sto Robot Analysis Total . | . . . . . Derelict Logs Recovered 1 | . . 1 . . Drone Launches . | . . . . . Drone Recoveries . | . . . . . Exploration | -11 -10 -10 -9 -9 ------------- Run | Yrd Mat Min Mat Sto Turns Passed 1060 | 82 34 464 313 167 Spaces Moved 814 | 52 25 334 151 252 Core 4 | 3 . . 1 . Treads 73 | 15 . . 42 16 Legs 473 | 34 25 334 80 . Wheels . | . . . . . Hover . | . . . . . Flight 264 | . . . 28 236 Fastest Speed 34 | 50 120 120 117 34 Average Speed 105 | 127 120 120 154 49 Slowest Speed 300 | 160 120 120 300 220 Overloaded Moves . | . . . . . Propulsion Burnouts . | . . . . . Robots Hopped 3 | . . . . 3 Cave-ins Triggered . | . . . . . Exploration Rate (%) 29 | 4 6 70 18 49 Regions Visited 4 Branch Regions 2 Pre-discovered Areas . | . . . . . Known Exits Taken . | . . . . . Unknown Exits Taken 4 | 1 1 1 1 . Scrap Searched 1 | . . 1 . . Spaces Dug . | . . . . . Terrain Destroyed 68 | . . . . 68 Melee . | . . . . . Projectile . | . . . . . AOE 68 | . . . . 68 Terrain Rammed . | . . . . . Walls Destroyed . | . . . . . Machines Disabled . | . . . . . Actions | -11 -10 -10 -9 -9 --------- Run | Yrd Mat Min Mat Sto Total 948 | 63 28 366 206 285 Wait 5 | . . 3 2 . Move 805 | 51 24 333 150 247 Hop 2 | . . . . 2 Pick Up 26 | 4 2 5 9 6 Fast Attach 14 | 5 1 . 2 6 Attach 11 | . 1 . 5 5 Detach 3 | . . . 1 2 Swap 13 | 3 . 2 8 . Drop 22 | . . 3 10 9 Fire 46 | . . 20 18 8 Melee . | . . . . . Ram 1 | . . . 1 . Kick . | . . . . . Crush . | . . . . . Escape Stasis . | . . . . . Rewire . | . . . . . Trap . | . . . . . Miscellaneous . | . . . . . Route ------- -11/Scrapyard -10/Materials -10/Mines -9/Materials (discovered 2 exits: Mat / *Sto) -9/Storage History --------- Turn | Location | Event 24 | -11/Scrapyard | Discovered new exit (range 14) 83 | -11/Scrapyard | Entered Materials 84 | -10/Materials | Discovered new exit (range 7) 117 | -10/Materials | Entered Mines 227 | -10/Mines | Met a Derelict bent on vengeance 317 | -10/Mines | Build established: Mutant 371 | -10/Mines | Found a damaged Exp. Sensor Array with a note attached 374 | -10/Mines | Found Prototype Device 564 | -10/Mines | Learned 2 Materials zone layouts 569 | -10/Mines | Discovered new exit (range 8) 581 | -10/Mines | Entered Materials 581 | -9/Materials | Evolved 2 slots: Propulsion x1, Utility x1 582 | -9/Materials | Identified exit to Materials 823 | -9/Materials | Core integrity fell below 50% 858 | -9/Materials | Discovered new exit (range 14) 877 | -9/Materials | Lost 9 parts (2p3n2u2w) 884 | -9/Materials | Core integrity fell below 20% 894 | -9/Materials | Entered Storage 899 | -9/Storage | Identified Exp. Sensor Array 1061 | -9/Storage | Destroyed by Y-45 Defender with Beam Rifle Last Messages --------------- 00996_ Dropped Heat Sink. 00996_ Acquired VTOL Module. 00997_ Dropped Flight Unit. 01000_ Acquired Med. Armor Plating. 01003_ U-05 Engineer builds a Wall. 01003_ Exp. Sensor Array destroyed. 01003_ Destroyed Welding Torch. 01003_ G-34 Mercenary destroyed. 01007_ Acquired 28 matter. 01008_ Acquired 22 matter. 01011_ Connecting with Door Terminal... 01011_ ALERT: Suspicious activity at Terminal S006. Dispatching Investigation squad. 01012_ A-02 Transporter destroyed. 01014_ K-01 Serf destroyed. 01015_ Rocket Launcher destroyed. 01016_ K-01 Serf collects debris. 01057_ Imp. Flight Unit destroyed. 01058_ Med. Armor Plating destroyed. 01061_ Critical hit (Burn: +37). Map ----- +----------------------------------------------------+ | ???????????????###### """ #???????????????????? | | ???????????????# # #???????????????????? | | ???????????????# #####+########???????????????? | | ???????????????# #??# + #???????????????? | | ???????????????# #### # #???????????????? | | ???????????????# + # #???????????????? | | ???????????????# #### # #???????????????? | | ???????????????# #??# + #???????????????? | | ???????????????# #??# # #???????????????? | | ???????????????# #??# # #???????????????? | | ???????????????######??# # #???????????????? | | ???????????????????????# #######???????????????? | | ???????????????????????# ^ ###########???????????? | | ???????????????? ??????# s^# ######## | | ???????????????? ""????# Yg# / | | ???????????????? """ ??#s # """ """ # ###### | | ??????????????# """ # ls# """ """ # #?????????? | | ?????????????#T + Y """ """ # #?????????? | | ??????????????# """ # # # #?????????? | | ???????????????? """ ??# # # #?????????? | | ???????????????? ""????# # # #?????????? | | ???????????????? ??????# Y########### #?????????? | | ????????????????######## ########### #####?????? | | ????????????????# +?????? | | ????????????????# ######## ########?????? | | ????????????????# @ #??????# #????????????? | | ????????????????######+##;##??????# #????????????? | | ???????????????????????? ??????##+############?? | | ????????????????????????" ?????# #?? | | ???????????????????????"" ????# #?? | | ???????????????????????"" #????# #?? | | ??????????????????????""" #????# #?? | | ???????????????????"???"" [#????# #?? | | ??????????????? #? ???? #????# ### | | ?????????????? ? ####?#####????######## # ## " | | ??????????????? # ########## [ *%= + " | | ??????????????## ==%[*! # " | | ????????????? =*![= #T# | | ????????????? # * ### | | ????????????" # ?####### ### #?? | | ????????????" #? ???????# #?## ### ###?? | | ???????????"" #?# ########+#### #??###???? | | ???????????"" #?# # [ # #????????? | | ??????????? #?# # # #????????? | | ????????# """ ### + # """#????????? | | ????????# """ ## # != !# """#????????? | | ????????# """ ## = * # """#????????? | | ?"??????# """ ## ############ """?????????? | | ? ""????# """ ## #??????????# "???????????? | | ? ????# ## ##??????????# ???????????? | +----------------------------------------------------+ Best States ------------- Heat Dissipation 28 Energy Generation 14 Energy Capacity 240 Matter Stores 300 Matter Capacity 300 Sight Range 16 Robot Scan Range 20 Terrain Scan Density 10 Armor Coverage 225 Power Shielding 33 Evasion (%) 63 Recoil Reduction 2 Item Schematics ----------------- None Robot Schematics ------------------ None Fabricated ------------ Nothing Alien Tech Used ----------------- None Achievements -------------- Oops Challenges ------------ None Game ------ Seed ShrapnelGaussBoomstick Manual? 0 Play Time 00:20:03 Cumulative 13.0 hours Start 2024.04.17 @ 00:39:09 End 2024.04.17 @ 00:57:40 Sessions 1 Manual Loads 0 Difficulty Rogue Special Mode None Game No. 24 Rogue 24 Adventurer 0 Explorer 0 Win Type - Total 0 Types 0/0/0/0/0/0/0/0/0 Lore% 17 Gallery% 17 Achievement% 14 Wizard Run 0 Options --------- Layout 1 ASCII 0 Keyboard 0 Movement Arrows Keybinds 0 Fullscreen 1 Font 24/Smallcaps Map View 50x35 Zoom Use 0% Tactical HUD 1 Map Filters NONE Filters NONE Steam 1 RUN: 0f3d02ee-5ae5-4e04-b346-367bdfbbe59c